bitfinex/quotes_SOLUSD_20250915
["timestamp","ask_amount","ask_price","bid_price","bid_amount"]
[1757969096188,1.67866904,233.99,233.98,45.8134849]
[1757969096376,5.95235594,233.99,233.98,45.8134849]
[1757969096797,4.4036869,233.99,233.98,45.8134849]
[1757969096996,5.95235594,233.99,233.98,45.8134849]
[1757969097994,1.67866904,233.99,233.98,45.8134849]
[1757969098380,0.13,233.99,233.98,45.8134849]
[1757969098575,1.67866904,233.99,233.98,45.8134849]
[1757969100811,0.13,233.99,233.98,46.5134849]
[1757969100980,1.67866904,233.99,233.98,46.5134849]
[1757969101288,1.67866904,233.99,233.98,45.8134849]
[1757969101597,5.95235594,233.99,233.98,45.8134849]
[1757969102292,0.13,233.99,233.98,45.8134849]
[1757969102497,1.67866904,233.99,233.98,45.8134849]
[1757969102683,0.13,233.99,233.98,45.8134849]
[1757969103189,1.67866904,233.99,233.98,45.8134849]
[1757969103904,5.95235594,233.99,233.98,45.8134849]
[1757969104282,6.01235594,233.99,233.98,45.8134849]
[1757969104799,13.59559401,233.98,233.94,0.06]
[1757969105001,1.54866904,233.95,233.94,0.06]
[1757969105375,1.54866904,233.95,233.94,0.77]
[1757969106001,1.54866904,233.96,233.94,0.77]
[1757969106175,1.54866904,233.97,233.95,33.81]
[1757969106381,1.54866904,233.98,233.96,0.71]
[1757969106674,1.54866904,233.98,233.97,33.1]
[1757969106878,1.54866904,233.98,233.97,33.81]
[1757969111181,1.54866904,233.98,233.97,33.1]
[1757969111410,5.8225386,233.98,233.97,33.1]
[1757969111899,5.8825386,233.98,233.95,33.1]
[1757969112082,1.54866904,233.96,233.95,33.1]
[1757969113106,5.82290395,233.96,233.95,33.1]
[1757969115204,4.27405222,233.97,233.95,33.1]
[1757969115393,1.54866904,233.96,233.95,33.1]
[1757969115898,1.54866904,233.96,233.94,45.86414359]
[1757969116505,5.82306189,233.96,233.94,45.86414359]
[1757969116804,1.54866904,233.95,233.94,45.86414359]
[1757969117212,1.54866904,233.95,233.94,46.57414359]
[1757969117914,5.82308665,233.95,233.94,46.57414359]
[1757969119614,5.82308665,233.95,233.94,45.86414359]
[1757969120621,5.82308665,233.95,233.94,46.57414359]
[1757969121007,5.82308665,233.95,233.94,12.76414359]
[1757969121227,5.82308665,233.95,233.94,45.84414359]
[1757969121618,150.8383329,233.97,233.94,46.55414359]
[1757969121811,1.54866904,233.95,233.94,46.55414359]
[1757969124328,5.82308665,233.95,233.94,46.55414359]
[1757969125017,5.82308665,233.95,233.94,45.84414359]
[1757969125216,5.82308665,233.95,233.94,46.55414359]
[1757969125812,5.82308665,233.95,233.94,45.84414359]
[1757969126525,5.82308665,233.95,233.94,46.55414359]
[1757969126907,1.54866904,233.95,233.94,46.55414359]
[1757969127422,5.82308665,233.95,233.94,46.55414359]
[1757969127625,5.82308665,233.95,233.94,45.84414359]
[1757969128520,5.82308665,233.95,233.94,46.55414359]
[1757969129508,5.82308665,233.95,233.94,45.84414359]
[1757969130907,1.54866904,233.95,233.94,46.55414359]
[1757969131228,1.54866904,233.95,233.94,0.06]
[1757969131611,26.0,233.93,233.91,0.06]
[1757969131813,135.34866904,233.92,233.91,0.06]
[1757969132026,133.8,233.91,233.89,0.06]
[1757969132218,1.54866904,233.9,233.89,0.06]
[1757969132620,5.82400037,233.9,233.89,0.06]
[1757969132931,21.19320689,233.9,233.89,0.06]
[1757969133427,54.31320689,233.9,233.89,0.06]
[1757969136028,54.25320689,233.9,233.89,0.06]
[1757969136327,54.29320689,233.9,233.89,0.06]
[1757969136919,26.0,233.88,233.87,0.06]
[1757969137116,33.7433452,233.88,233.87,0.06]
[1757969137430,33.8033452,233.88,233.87,0.06]
[1757969137610,35.45717797,233.88,233.87,0.06]
[1757969138331,39.7328749,233.88,233.87,0.06]
[1757969139938,13.59559401,233.87,233.86,0.06]
[1757969140118,21.39893921,233.87,233.86,0.06]
[1757969140837,21.39893921,233.87,233.85,0.06]
[1757969140838,4.2760626,233.86,233.85,0.06]
[1757969141042,38.90473164,233.86,233.85,0.06]
[1757969141343,38.96473164,233.86,233.85,0.06]
[1757969141719,38.90473164,233.86,233.85,0.06]
[1757969142224,52.50032565,233.86,233.85,0.06]
[1757969143017,54.21437874,233.86,233.85,0.06]
[1757969143448,7.53878473,233.86,233.85,0.75]
[1757969143740,5.82473164,233.86,233.85,0.75]
[1757969150722,1.54866904,233.86,233.85,0.75]
[1757969151851,2.42391736,233.86,233.85,0.75]
[1757969153051,6.69997996,233.86,233.85,0.75]
[1757969153951,2.42391736,233.86,233.85,0.75]
[1757969156225,6.69997996,233.86,233.85,0.75]
[1757969156738,2.42391736,233.86,233.85,0.75]
[1757969162241,2.42391736,233.86,233.85,5.02624545]
[1757969162448,2.42391736,233.87,233.85,5.02624545]
[1757969162666,2.42391736,233.87,233.86,0.69]
[1757969163359,4.27461534,233.94,233.86,0.69]
[1757969163559,2.42391736,233.91,233.86,0.69]
[1757969163870,2.42391736,233.92,233.86,0.69]
[1757969164062,4.30443683,233.95,233.86,0.69]
[1757969164363,2.42391736,233.92,233.86,0.69]
[1757969164664,2.42391736,233.92,233.87,4.27587976]
[1757969165062,0.03,233.95,233.89,2.42391736]
[1757969165356,0.03,233.95,233.9,0.69]
[1757969166151,2.45391736,233.95,233.9,0.69]
[1757969166338,2.42391736,233.93,233.9,0.69]
[1757969166844,2.42391736,233.92,233.9,0.69]
[1757969167050,2.42391736,233.91,233.87,0.69]
[1757969167253,2.42391736,233.88,233.85,4.33613247]
[1757969167754,2.42391736,233.89,233.86,0.69]
[1757969168455,2.42391736,233.87,233.85,4.33624399]
[1757969168660,2.42391736,233.88,233.85,4.33624399]
[1757969168965,2.42391736,233.88,233.86,0.69]
[1757969169547,4.27514856,233.91,233.86,0.69]
[1757969169748,2.42391736,233.88,233.87,0.69]
[1757969171857,4.27514856,233.91,233.87,0.69]
[1757969172063,2.42391736,233.88,233.85,4.33624399]
[1757969172267,2.42391736,233.88,233.86,0.69]
[1757969172455,2.42391736,233.88,233.87,0.69]
[1757969173042,138.13624399,233.94,233.87,0.69]
[1757969173249,133.8,233.94,233.89,2.42391736]
[1757969173559,0.03,233.96,233.9,3.11391736]
[1757969173768,0.03,233.96,233.9,0.69]
[1757969173958,0.03,233.96,233.91,3.11391736]
[1757969174346,0.03,233.96,233.91,2.42391736]
[1757969174546,0.03,233.96,233.92,0.69]
[1757969174778,0.03,233.96,233.93,4.27478305]
[1757969175182,0.03,233.96,233.94,0.69]
[1757969177558,0.03,233.96,233.94,4.96460032]
[1757969177792,0.03,233.96,233.94,7.38851768]
[1757969178808,0.03,233.96,233.94,9.24304467]
[1757969179871,0.03,233.96,233.95,6.69833497]
[1757969180179,0.03,233.96,233.95,40.40833497]
[1757969180359,0.03,233.96,233.95,37.98441761]
[1757969182278,0.03,233.96,233.95,40.40833497]
[1757969186192,0.03,233.96,233.95,37.98441761]
[1757969191603,0.03,233.96,233.91,0.69]
[1757969191800,2.42391736,233.95,233.89,1.71265869]
[1757969192108,2.42391736,233.93,233.9,32.98]
[1757969192688,4.36438597,233.96,233.9,32.98]
[1757969193004,2.42391736,233.93,233.9,33.67]
[1757969193822,2.42391736,233.93,233.89,4.27535637]
[1757969193823,2.42391736,233.92,233.89,4.96535637]
[1757969194013,2.42391736,233.92,233.91,32.98]
[1757969195107,2.42391736,233.94,233.91,37.94514691]
[1757969195709,2.42391736,233.94,233.92,0.69]
[1757969197011,2.42391736,233.94,233.91,32.98]
[1757969197209,2.42391736,233.93,233.91,32.98]
[1757969197508,2.42391736,233.93,233.88,4.96568446]
[1757969197509,2.42391736,233.92,233.88,0.69]
[1757969197809,2.42391736,233.91,233.86,267.33831793]
[1757969198120,2.42391736,233.91,233.87,33.65]
[1757969198304,2.42391736,233.91,233.88,32.96]
[1757969198503,2.42391736,233.91,233.88,33.65]
[1757969198813,2.42391736,233.92,233.89,0.69]
[1757969199112,4.3345726,233.95,233.88,37.2356479]
[1757969199113,4.2745726,233.95,233.9,0.69]
[1757969199319,2.42391736,233.94,233.91,32.96]
[1757969199492,2.42391736,233.94,233.92,0.69]
[1757969200200,2.42391736,233.95,233.92,0.69]
[1757969200510,2.42391736,233.95,233.93,0.69]
[1757969200704,2.42391736,233.95,233.94,32.96]
[1757969202596,0.03,233.96,233.94,33.65]
[1757969202597,2.45391736,233.96,233.94,33.65]
[1757969202798,2.45391736,233.96,233.95,0.69]
[1757969205009,2.45391736,233.96,233.94,32.96]
[1757969205215,2.42391736,233.95,233.94,32.96]
[1757969205407,2.42391736,233.95,233.9,4.27519581]
[1757969205716,2.42391736,233.94,233.91,33.63]
[1757969205920,2.42391736,233.94,233.92,0.69]
[1757969206307,2.42391736,233.94,233.91,32.94]
[1757969206621,2.42391736,233.94,233.92,0.69]
[1757969207694,2.42391736,233.94,233.86,262.432382]
[1757969207695,2.42391736,233.93,233.88,0.75]
[1757969207902,2.42391736,233.9,233.89,32.94]
[1757969208920,2.42391736,233.92,233.89,33.63]
[1757969209113,2.42391736,233.92,233.89,32.94]
[1757969209422,2.42391736,233.92,233.9,0.69]
[1757969210025,2.42391736,233.92,233.89,32.94]
[1757969210232,2.42391736,233.92,233.89,33.63]
[1757969213398,2.42391736,233.92,233.89,32.94]
[1757969213721,2.42391736,233.93,233.9,0.69]
[1757969213899,1.55007523,233.93,233.9,0.69]
[1757969214816,0.03,233.96,233.92,1.55007523]
[1757969215015,1.55007523,233.95,233.93,36.1437138]
[1757969215208,1.55007523,233.95,233.93,32.96]
[1757969215528,1.55007523,233.95,233.93,33.68]
[1757969216111,1.55007523,233.95,233.93,32.96]
[1757969216428,1.55007523,233.94,233.93,32.96]
[1757969216727,1.55007523,233.94,233.93,33.74]
[1757969216922,1.55007523,233.94,233.93,33.02]
[1757969217325,1.55007523,233.94,233.93,33.08]
[1757969220327,0.03,233.95,233.93,38.07478305]
[1757969220519,0.03,233.95,233.94,0.72]
[1757969222008,1.58007523,233.95,233.94,0.72]
[1757969222511,1.58007523,233.95,233.93,33.08]
[1757969222714,1.58007523,233.95,233.93,33.75]
[1757969223617,1.58007523,233.95,233.94,0.67]
[1757969228043,0.03,233.95,233.94,0.67]
[1757969228251,1.58007523,233.95,233.94,0.67]
[1757969228831,0.03,233.95,233.94,0.67]
[1757969229625,0.03,233.95,233.94,4.94460032]
[1757969234953,0.03,233.95,233.94,6.49467555]
[1757969235168,0.03,233.96,233.94,32.63683712]
[1757969235445,0.03,233.96,233.95,39.43449284]
[1757969235651,0.03,233.98,233.95,39.57665441]
[1757969235856,0.03,233.98,233.97,1.55007523]
[1757969236027,0.03,233.98,233.97,37.69898958]
[1757969236227,0.03,233.98,233.97,36.81891435]
[1757969236449,0.03,233.98,233.97,38.36898958]
[1757969237328,0.03,233.98,233.97,42.6430418]
[1757969237729,0.03,233.98,233.97,41.09296657]
[1757969238652,0.03,233.98,233.97,42.6430418]
[1757969239342,0.03,233.98,233.97,41.09296657]
[1757969241058,0.03,233.98,233.97,41.07296657]
[1757969241830,0.03,233.98,233.97,41.0666974]
[1757969242141,0.03,233.98,233.97,37.88405222]
[1757969242342,0.03,233.98,233.97,37.86405222]
[1757969243742,0.03,233.98,233.97,39.41412745]
[1757969244427,0.13,233.99,233.97,53.15188303]
[1757969244647,0.13,233.99,233.98,2.3622368]
[1757969244850,0.03,234.0,233.98,2.3622368]
[1757969245035,0.03,234.0,233.99,35.2822368]
[1757969245232,0.1,234.09,234.03,0.14216157]
[1757969245467,0.1,234.09,234.07,1.55007523]
[1757969245642,0.1,234.09,234.08,37.19204374]
[1757969245849,0.1,234.09,234.08,37.86204374]
[1757969246160,0.1,234.09,234.08,41.03460842]
[1757969247147,0.1,234.09,234.08,53.62636558]
[1757969248168,0.1,234.09,234.08,50.4538009]
[1757969253069,0.13,234.09,234.08,50.4538009]
[1757969253286,0.13,234.09,234.08,46.18175716]
[1757969253446,0.13,234.09,234.08,13.26175716]
[1757969253638,0.13,234.09,234.08,46.16175716]
[1757969253964,0.13,234.09,234.08,45.49175716]
[1757969254167,1.68007523,234.09,234.08,12.59175716]
[1757969254359,1.68007523,234.09,234.08,32.9]
[1757969256954,0.13,234.09,234.08,32.9]
[1757969257263,0.13,234.09,234.08,45.92767992]
[1757969259574,0.13,234.09,234.08,46.59767992]
[1757969261577,0.13,234.09,234.08,13.02767992]
[1757969261878,6.01193647,234.09,234.08,32.88]
[1757969262075,5.95193647,234.09,234.08,32.88]
[1757969262249,0.13,234.09,234.08,32.88]
[1757969262449,0.13,234.09,234.08,33.55]
[1757969262650,0.13,234.09,234.08,32.88]
[1757969263769,4.40186124,234.09,234.08,32.88]
[1757969263956,5.95193647,234.09,234.08,32.88]
[1757969264160,0.13,234.09,234.08,32.88]
[1757969264356,0.13,234.09,234.08,33.55]
[1757969266076,0.13,234.09,234.08,50.78946375]
[1757969266269,0.13,234.09,234.08,46.51742001]
[1757969269883,0.13,234.09,234.08,50.78946375]
[1757969274079,0.13,234.09,234.08,17.90946375]
[1757969274388,0.13,234.09,234.08,50.78946375]
[1757969278062,0.13,234.09,234.08,46.51742001]
[1757969279662,0.13,234.09,234.08,50.78946375]
[1757969279864,0.13,234.09,234.08,46.51742001]
[1757969280971,0.13,234.09,234.08,13.63742001]
[1757969282287,0.13,234.09,234.08,46.51742001]
[1757969282506,0.13,234.09,234.08,13.63742001]
[1757969282786,0.13,234.09,234.08,46.51742001]
[1757969283305,0.13,234.09,234.08,13.63742001]
[1757969283593,0.13,234.09,234.08,45.84742001]
[1757969283761,0.13,234.09,234.08,46.56742001]
[1757969284772,0.13,234.09,234.08,45.84742001]
[1757969284773,2.54814291,234.09,234.08,45.84742001]
[1757969284999,6.82000415,234.09,234.08,45.84742001]
[1757969285483,6.88000415,234.09,234.08,45.84742001]
[1757969286401,6.82000415,234.09,234.08,45.84742001]
[1757969287665,0.13,234.09,234.08,46.56742001]
[1757969288497,0.13,234.09,234.08,49.75115651]
[1757969289394,0.13,234.09,234.08,46.56742001]
[1757969291193,0.13,234.09,234.08,50.83946375]
[1757969291691,0.13,234.09,234.08,53.25760666]
[1757969291889,0.03,234.12,234.08,66.23536562]
[1757969292094,0.03,234.12,234.11,2.41814291]
[1757969292282,0.03,234.12,234.11,35.29814291]
[1757969292482,0.03,234.12,234.11,36.01814291]
[1757969293195,0.03,234.12,234.11,40.28963921]
[1757969294807,0.03,234.12,234.11,37.8714963]
[1757969296197,0.03,234.12,234.11,40.28963921]
[1757969296404,2.51814291,234.19,234.13,4.27113142]
[1757969296696,0.1,234.19,234.15,2.41814291]
[1757969296884,0.1,234.19,234.16,33.6]
[1757969297302,0.1,234.19,234.17,0.72]
[1757969297494,0.1,234.19,234.18,33.6]
[1757969300805,2.41814291,234.23,234.18,37.87021948]
[1757969300994,2.41814291,234.23,234.19,0.72]
[1757969301310,2.41814291,234.23,234.2,32.9]
[1757969301493,2.41814291,234.23,234.2,33.62]
[1757969301886,2.41814291,234.24,234.21,0.72]
[1757969302085,2.41814291,234.24,234.22,32.88]
[1757969303318,2.41814291,234.23,234.22,32.88]
[1757969303604,2.41814291,234.23,234.16,0.72]
[1757969303806,4.32895882,234.25,234.13,19.52141731]
[1757969303807,2.41814291,234.18,234.17,32.88]
[1757969304107,2.41814291,234.18,234.17,32.9]
[1757969304784,2.41814291,234.18,234.14,0.72]
[1757969304978,2.41814291,234.16,234.15,33.62]
[1757969305607,2.41814291,234.16,234.15,32.9]
[1757969306183,2.41814291,234.16,234.13,0.72]
[1757969306427,2.41814291,234.14,234.09,39.71332672]
[1757969306587,2.41814291,234.11,234.1,33.62]
[1757969306787,2.41814291,234.11,234.1,32.9]
[1757969307401,2.41814291,234.11,234.08,12.96742001]
[1757969307706,2.41814291,234.09,234.05,0.72]
[1757969307904,2.41814291,234.07,234.06,33.64]
[1757969308087,2.41814291,234.07,234.06,33.66]
[1757969309094,2.41814291,234.07,234.06,33.72]
[1757969309691,2.41814291,234.08,234.06,46.63467418]
[1757969309887,2.41814291,234.08,234.07,0.72]
[1757969312107,2.41814291,234.08,234.06,45.91467418]
[1757969312312,2.41814291,234.07,234.06,46.57467418]
[1757969312609,2.41814291,234.07,234.06,45.89467418]
[1757969313312,6.69036916,234.07,234.06,45.89467418]
[1757969316514,133.0687612,234.08,234.06,45.89467418]
[1757969316515,133.0687612,234.08,234.06,46.55467418]
[1757969316695,133.0687612,234.08,234.07,0.66]
[1757969319913,135.48690411,234.08,234.06,45.89467418]
[1757969320111,2.41814291,234.07,234.06,45.89467418]
[1757969322816,6.69036916,234.07,234.06,45.89467418]
[1757969325017,6.69036916,234.07,234.06,45.87467418]
[1757969327223,6.69036916,234.07,234.06,12.97467418]
[1757969327425,6.69036916,234.07,234.06,45.87467418]
[1757969328008,2.41814291,234.07,234.06,45.87467418]
[1757969328211,6.69036916,234.07,234.06,12.97467418]
[1757969328914,6.69036916,234.07,234.06,13.63467418]
[1757969329110,2.41814291,234.07,234.06,13.63467418]
[1757969330022,6.69036916,234.07,234.06,13.63467418]
[1757969333599,6.69036916,234.07,234.06,12.97467418]
[1757969333818,6.69036916,234.07,234.06,13.66467418]
[1757969334027,4.2714963,234.11,234.06,13.66467418]
[1757969334325,2.41814291,234.1,234.07,33.57]
[1757969334628,2.41814291,234.1,234.08,0.69]
[1757969334836,2.41814291,234.11,234.09,32.9]
[1757969335009,2.41814291,234.11,234.1,0.69]
[1757969337844,1.5477828,234.11,234.1,0.69]
[1757969340145,133.8,234.12,234.1,0.69]
[1757969340433,1.5477828,234.15,234.11,32.88]
[1757969340630,1.5477828,234.16,234.12,0.69]
[1757969340813,1.5477828,234.16,234.13,32.9]
[1757969341014,1.5477828,234.16,234.14,0.69]
[1757969341214,1.5477828,234.16,234.15,33.59]
[1757969341442,133.8,234.19,234.15,33.59]
[1757969341653,135.3477828,234.19,234.16,0.69]
[1757969341821,1.5477828,234.18,234.17,32.9]
[1757969342023,1.5477828,234.18,234.17,33.58]
[1757969342424,135.3477828,234.19,234.17,33.58]
[1757969342639,1.5477828,234.18,234.17,32.9]
[1757969343138,1.5477828,234.18,234.17,33.58]
[1757969343834,5.87800228,234.18,234.11,0.68]
[1757969344036,4.33021948,234.18,234.12,32.88]
[1757969344936,4.33021948,234.18,234.13,32.9]
[1757969345135,1.5477828,234.14,234.13,32.9]
[1757969345335,5.8187318,234.14,234.13,32.9]
[1757969345537,5.8187318,234.14,234.1,32.9]
[1757969345740,1.5477828,234.11,234.1,32.9]
[1757969346323,1.5477828,234.11,234.1,32.96]
[1757969346519,133.8,234.15,234.1,32.96]
[1757969346520,133.8,234.15,234.1,33.64]
[1757969346856,135.3477828,234.15,234.11,0.68]
[1757969347224,1.5477828,234.14,234.11,0.68]
[1757969348022,1.5477828,234.14,234.11,4.95144344]
[1757969348221,133.8,234.15,234.12,0.68]
[1757969348416,133.8,234.15,234.13,32.92]
[1757969348727,133.8,234.15,234.14,0.68]
[1757969351826,135.3477828,234.15,234.13,32.92]
[1757969352031,1.5477828,234.14,234.13,32.92]
[1757969353260,1.5477828,234.14,234.13,33.6]
[1757969353560,1.5477828,234.14,234.13,32.92]
[1757969354144,1.5477828,234.14,234.13,33.6]
[1757969354729,5.8187318,234.14,234.13,32.92]
[1757969354935,5.8187318,234.14,234.11,0.68]
[1757969355136,1.5477828,234.13,234.12,33.6]
[1757969356240,1.5477828,234.14,234.12,33.6]
[1757969356441,1.5477828,234.14,234.13,0.68]
[1757969356637,133.8,234.15,234.13,0.68]
[1757969358645,1.5477828,234.14,234.13,0.68]
[1757969359146,1.5477828,234.14,234.12,32.92]
[1757969359334,1.5477828,234.13,234.12,32.92]
[1757969359657,1.5477828,234.13,234.12,33.6]
[1757969361654,1.5477828,234.13,234.12,32.92]
[1757969361856,1.5477828,234.13,234.12,33.6]
[1757969362855,5.81896681,234.13,234.12,32.9]
[1757969363442,1.5477828,234.13,234.12,32.9]
[1757969363647,1.5477828,234.14,234.12,33.58]
[1757969363850,133.8,234.15,234.13,0.68]
[1757969363851,135.3477828,234.15,234.13,0.68]
[1757969364047,135.3477828,234.15,234.12,32.9]
[1757969364252,135.3477828,234.15,234.13,0.68]
[1757969364450,135.3477828,234.15,234.14,0.68]
[1757969367048,135.3477828,234.15,234.12,32.9]
[1757969367255,1.5477828,234.14,234.13,0.68]
[1757969368145,133.8,234.15,234.13,0.68]
[1757969369364,133.8,234.15,234.14,4.270949]
[1757969369557,133.8,234.15,234.14,4.950949]
[1757969370169,133.8,234.23,234.14,41.62832151]
[1757969370353,1.5477828,234.22,234.15,33.58]
[1757969370551,1.5477828,234.22,234.16,0.68]
[1757969371066,1.5477828,234.21,234.16,0.68]
[1757969371771,1.5477828,234.21,234.17,14.94640645]
[1757969371945,135.3477828,234.23,234.18,33.59]
[1757969372146,135.3477828,234.23,234.19,0.69]
[1757969372571,135.3477828,234.23,234.18,32.9]
[1757969372770,135.3477828,234.23,234.19,0.69]
[1757969372959,135.3477828,234.23,234.2,4.26985482]
[1757969373158,135.3477828,234.23,234.21,32.9]
[1757969373745,135.3477828,234.23,234.21,33.59]
[1757969374968,135.3477828,234.23,234.21,37.8596273]
[1757969375179,133.8,234.23,234.22,0.69]
[1757969375478,135.3477828,234.23,234.21,37.8596273]
[1757969375677,1.5477828,234.22,234.21,37.8596273]
[1757969376459,1.5477828,234.22,234.21,37.1696273]
[1757969376679,1.5477828,234.22,234.16,26.0]
[1757969376985,133.8,234.23,234.18,0.69]
[1757969376986,1.5477828,234.2,234.18,0.69]
[1757969377157,133.8,234.23,234.18,2.2377828]
[1757969377568,133.8,234.23,234.19,0.69]
[1757969377875,133.8,234.23,234.2,32.9]
[1757969378075,133.8,234.23,234.21,0.69]
[1757969378881,133.8,234.23,234.22,4.26949022]
[1757969379077,0.03,234.24,234.22,4.95949022]
[1757969379379,0.03,234.24,234.23,33.59]
[1757969380072,0.03,234.24,234.23,37.85930794]
[1757969380958,0.03,234.26,234.23,37.85930794]
[1757969380959,0.03,234.26,234.23,48.5325778]
[1757969381180,0.03,234.26,234.24,0.69]
[1757969381378,0.03,234.26,234.25,32.9]
[1757969381883,0.03,234.26,234.25,33.59]
[1757969382073,0.03,234.26,234.25,37.85894343]
[1757969382772,0.03,234.26,234.25,33.59]
[1757969384278,0.03,234.26,234.25,37.85894343]
[1757969390478,0.03,234.26,234.23,30.9592008]
[1757969390679,1.5477828,234.25,234.23,26.69]
[1757969390864,1.5477828,234.24,234.21,0.69]
[1757969391072,1.5477828,234.24,234.22,32.86]
[1757969391585,1.5477828,234.24,234.22,33.55]
[1757969392879,1.5477828,234.25,234.22,33.55]
[1757969393760,1.5477828,234.25,234.23,0.69]
[1757969393962,1.5477828,234.24,234.19,0.67]
[1757969394270,4.32894343,234.25,234.2,32.86]
[1757969394271,1.5477828,234.23,234.2,32.86]
[1757969394478,1.5477828,234.24,234.21,0.67]
[1757969394679,1.5477828,234.24,234.22,32.86]
[1757969394884,1.5477828,234.24,234.22,33.53]
[1757969396968,0.03,234.26,234.22,32.86]
[1757969397291,1.5477828,234.25,234.23,0.67]
[1757969397460,0.03,234.26,234.24,33.53]
[1757969397461,1.5777828,234.26,234.24,33.53]
[1757969397656,1.5477828,234.25,234.24,32.86]
[1757969397881,1.6077828,234.25,234.24,32.86]
[1757969398069,1.5477828,234.25,234.24,32.86]
[1757969398477,5.81672623,234.25,234.24,32.86]
[1757969399380,0.03,234.26,234.24,33.53]
[1757969399595,0.03,234.26,234.25,0.67]
[1757969400486,0.03,234.26,234.25,33.55]
[1757969402283,0.03,234.26,234.25,37.81894343]
[1757969402480,0.03,234.26,234.25,33.55]
[1757969409305,0.03,234.26,234.25,37.81894343]
[1757969412292,0.03,234.26,234.25,33.55]
[1757969412901,0.03,234.26,234.25,37.81894343]
[1757969413599,0.03,234.26,234.25,40.23379186]
[1757969414478,0.03,234.26,234.25,26.67]
[1757969414678,0.03,234.26,234.25,59.53]
[1757969414877,0.03,234.26,234.25,63.79894343]
[1757969419195,0.03,234.27,234.25,66.35595343]
[1757969419399,0.03,234.27,234.26,3.22701]
[1757969419590,0.1,234.29,234.26,3.22701]
[1757969419778,0.1,234.29,234.26,26.0]
[1757969419984,0.1,234.29,234.27,32.86]
[1757969420183,0.1,234.29,234.27,33.53]
[1757969420783,0.13,234.29,234.28,0.67]
[1757969421180,0.13,234.29,234.28,4.93839679]
[1757969423220,0.13,234.29,234.27,37.12857628]
[1757969423389,0.13,234.29,234.28,0.67]
[1757969424398,0.13,234.29,234.28,4.93839679]
[1757969428009,2.41484843,234.35,234.28,41.75155033]
[1757969428209,2.41484843,234.35,234.29,33.53]
[1757969428712,2.41484843,234.35,234.3,0.67]
[1757969428907,2.41484843,234.35,234.31,32.86]
[1757969429104,2.41484843,234.35,234.32,4.93766814]
[1757969429303,2.41484843,234.35,234.33,32.86]
[1757969429988,2.41484843,234.35,234.33,45.9122038]
[1757969430693,1.91484843,234.35,234.33,45.9122038]
[1757969431092,1.91484843,234.35,234.33,50.17963249]
[1757969431300,1.91484843,234.35,234.33,50.84963249]
[1757969431508,1.91484843,234.35,234.33,17.98963249]
[1757969431716,1.91484843,234.35,234.34,32.86]
[1757969433418,2.41484843,234.37,234.34,33.52]
[1757969433612,138.16655898,234.39,234.35,0.66]
[1757969433613,133.9,234.39,234.35,0.66]
[1757969433912,133.9,234.39,234.36,32.86]
[1757969434119,133.9,234.39,234.36,33.52]
[1757969434416,133.9,234.39,234.37,0.66]
[1757969434618,133.9,234.39,234.38,32.86]
[1757969435002,133.9,234.39,234.35,0.66]
[1757969435198,133.9,234.39,234.36,32.86]
[1757969436603,2.41484843,234.38,234.36,32.86]
[1757969436801,133.9,234.39,234.36,33.52]
[1757969437116,133.9,234.39,234.37,0.66]
[1757969437288,133.9,234.39,234.38,32.86]
[1757969439126,133.93,234.39,234.38,32.86]
[1757969439835,136.34484843,234.39,234.38,32.86]
[1757969440200,136.34484843,234.39,234.38,33.52]
[1757969440417,136.34484843,234.39,234.38,32.86]
[1757969440802,12.8213347,234.48,234.39,13.59559401]